bitfinex-derivatives/quotes_SOLF0:USTF0_20250415
["timestamp","ask_amount","ask_price","bid_price","bid_amount"]
[1744712702590,7.5538,132.4,132.37,2.1391]
[1744712703193,7.60512351,132.41,132.37,2.1391]
[1744712703692,7.5535,132.4,132.38,7.5542]
[1744712704888,7.5545,132.39,132.37,2.1391]
[1744712705086,0.05202351,132.41,132.36,40.1155]
[1744712705387,0.05202351,132.41,132.34,2.1128]
[1744712705388,0.05202351,132.41,132.34,4.2543]
[1744712705889,7.5548,132.38,132.35,7.556]
[1744712706090,0.05369647,132.38,132.34,2.1415]
[1744712706492,0.05369647,132.38,132.36,7.5553]
[1744712706792,0.05369647,132.38,132.34,2.1415]
[1744712707194,0.05369647,132.38,132.37,7.5551]
[1744712708996,7.5523,132.42,132.39,7.5539]
[1744712710093,7.5519,132.43,132.39,0.05173723]
[1744712710296,0.05517148,132.42,132.39,0.05173723]
[1744712710593,0.05517148,132.42,132.4,7.5531]
[1744712710897,0.05517148,132.42,132.39,0.05173723]
[1744712711099,0.05517148,132.42,132.39,7.60543723]
[1744712711396,0.05517148,132.42,132.39,0.05173723]
[1744712711595,0.05517148,132.42,132.4,7.5531]
[1744712711795,0.05517148,132.42,132.39,0.05173723]
[1744712712395,0.05517148,132.42,132.41,7.5529]
[1744712714601,0.05517148,132.42,132.4,4.0761]
[1744712715401,0.05517148,132.42,132.4,2.0159]
[1744712716096,7.60777148,132.42,132.4,9.5692]
[1744712716698,7.5529,132.41,132.4,2.0159]
[1744712716900,0.05517148,132.42,132.39,0.05173723]
[1744712717097,0.05517148,132.42,132.39,2.10183723]
[1744712717292,7.60777148,132.42,132.39,9.65553723]
[1744712717792,0.05517148,132.42,132.39,9.65553723]
[1744712717998,0.05517148,132.42,132.39,2.10183723]
[1744712718396,7.5532,132.41,132.39,2.10183723]
[1744712718802,0.05517148,132.42,132.39,2.10183723]
[1744712719101,7.60767148,132.42,132.39,9.65553723]
[1744712719401,0.05517148,132.42,132.39,2.10183723]
[1744712719604,7.5531,132.41,132.39,0.05173723]
[1744712721601,7.5531,132.41,132.39,7.60573723]
[1744712722000,7.60767148,132.42,132.39,0.05173723]
[1744712722307,0.05517148,132.42,132.39,0.05173723]
[1744712722492,7.5531,132.41,132.39,0.05173723]
[1744712723602,0.05517148,132.42,132.39,0.05173723]
[1744712724206,0.05517148,132.42,132.4,7.5532]
[1744712724607,7.60787148,132.42,132.39,7.60553723]
[1744712725505,7.32311976,132.42,132.39,0.05173723]
[1744712726506,7.5534,132.4,132.39,0.05173723]
[1744712727007,0.05517148,132.42,132.39,0.05173723]
[1744712727601,7.60797148,132.42,132.39,7.60543723]
[1744712728200,7.5529,132.41,132.39,7.60543723]
[1744712728706,0.05517148,132.42,132.39,7.60543723]
[1744712728707,7.60777148,132.42,132.39,7.60543723]
[1744712732709,7.5529,132.41,132.39,7.60543723]
[1744712733507,7.5529,132.41,132.39,0.05173723]
[1744712734000,7.60777148,132.42,132.39,0.05173723]
[1744712734205,0.05517148,132.42,132.39,7.60573723]
[1744712734409,7.5531,132.41,132.39,0.05173723]
[1744712735107,7.5534,132.4,132.39,0.05173723]
[1744712735310,0.05517148,132.42,132.39,0.05173723]
[1744712736207,7.5531,132.41,132.39,0.05173723]
[1744712736707,7.5531,132.41,132.39,7.60573723]
[1744712737108,0.05517148,132.42,132.39,0.05173723]
[1744712738508,7.5534,132.4,132.39,0.05173723]
[1744712741105,12.20552993,132.4,132.39,0.05173723]
[1744712743011,0.05517148,132.42,132.39,4.70386716]
[1744712743206,4.65212993,132.46,132.41,4.65212993]
[1744712743507,4.65212993,132.43,132.38,35.97212993]
[1744712743709,4.65212993,132.42,132.38,31.32]
[1744712743907,4.65212993,132.43,132.38,31.32]
[1744712744107,12.20422993,132.43,132.4,7.5529]
[1744712744306,0.05335608,132.42,132.39,0.04840221]
[1744712745605,4.70548601,132.42,132.39,0.04840221]
[1744712746011,7.5529,132.41,132.39,7.60190221]
[1744712746208,4.70548601,132.42,132.39,0.04840221]
[1744712746411,12.25798601,132.42,132.4,7.5532]
[1744712747010,0.05335608,132.42,132.41,7.5529]
[1744712747508,0.05335608,132.42,132.39,4.70053214]
[1744712747710,0.05335608,132.42,132.41,7.5529]
[1744712749213,12.25798601,132.42,132.4,7.5534]
[1744712749410,4.65212993,132.41,132.39,0.04840221]
[1744712749810,12.20512993,132.41,132.39,0.04840221]
[1744712750115,0.05335608,132.42,132.39,0.04840221]
[1744712750315,0.05335608,132.42,132.4,7.5532]
[1744712753618,0.05335608,132.42,132.41,12.20502993]
[1744712753819,7.5509,132.45,132.41,4.65212993]
[1744712754519,7.5509,132.45,132.42,7.552]
[1744712754719,12.20302993,132.45,132.42,7.552]
[1744712755017,12.25827673,132.45,132.42,7.60911887]
[1744712756918,7.6061468,132.45,132.42,7.60911887]
[1744712757922,7.6061468,132.45,132.43,7.5517]
[1744712758223,0.0552468,132.45,132.43,7.5517]
[1744712758422,0.0552468,132.45,132.42,0.05711887]
[1744712758621,0.0552468,132.45,132.42,7.60911887]
[1744712758922,0.0552468,132.45,132.42,4.7092488]
[1744712759123,0.0552468,132.45,132.43,7.5514]
[1744712759618,0.0552468,132.45,132.44,7.5511]
[1744712761725,4.70737673,132.45,132.42,30.49711887]
[1744712761920,0.0552468,132.45,132.42,35.1492488]
[1744712762122,0.0552468,132.45,132.44,12.20322993]
[1744712762423,4.65212993,132.51,132.44,4.65212993]
[1744712762620,4.65212993,132.51,132.42,32.60891887]
[1744712762621,4.65212993,132.51,132.46,4.65212993]
[1744712762922,4.65212993,132.5,132.47,7.549]
[1744712763323,0.05498183,132.5,132.47,0.05196855]
[1744712763723,0.05498183,132.5,132.48,7.5485]
[1744712764423,7.60268183,132.5,132.48,7.5485]
[1744712765328,0.05498183,132.5,132.48,4.65212993]
[1744712765627,4.65212993,132.57,132.49,4.65212993]
[1744712765827,4.65212993,132.57,132.52,4.65212993]
[1744712766026,7.5446,132.56,132.52,4.65212993]
[1744712766229,7.5446,132.56,132.5,30.44]
[1744712766230,2.0651,132.59,132.54,4.65212993]
[1744712766427,4.65212993,132.62,132.56,4.65212993]
[1744712766626,0.05785438,132.58,132.57,4.65212993]
[1744712766827,4.65212993,132.62,132.57,4.65212993]
[1744712767028,0.05097604,132.59,132.57,4.65212993]
[1744712767223,4.65212993,132.58,132.56,0.05084909]
[1744712767422,4.65212993,132.57,132.54,30.44]
[1744712767624,4.65212993,132.55,132.5,30.42]
[1744712767825,4.65212993,132.54,132.51,7.5471]
[1744712768025,4.65212993,132.55,132.5,35.07212993]
[1744712768531,0.0564173,132.54,132.51,7.6045022]
[1744712768826,0.0564173,132.54,132.51,0.0576022]
[1744712769028,0.0564173,132.54,132.51,4.70973213]
[1744712769330,0.0564173,132.54,132.52,7.5463]
[1744712769629,0.0564173,132.54,132.51,0.0576022]
[1744712770022,7.30772335,132.54,132.51,0.0576022]
[1744712770532,7.5463,132.53,132.51,0.0576022]
[1744712773130,7.5466,132.52,132.51,0.0576022]
[1744712776037,0.0564173,132.54,132.51,0.0576022]
[1744712776538,0.0564173,132.54,132.51,7.6043022]
[1744712777333,7.25130605,132.52,132.51,0.0576022]
[1744712778333,7.25130605,132.52,132.46,30.42]
[1744712778839,7.5491,132.48,132.46,30.42]
[1744712779239,7.25130605,132.52,132.46,30.42]
[1744712779538,0.05348308,132.5,132.48,0.05016583]
[1744712780539,7.25130605,132.49,132.43,2.1088]
[1744712780743,7.25130605,132.51,132.43,2.1088]
[1744712780941,7.5503,132.46,132.43,2.1088]
[1744712781643,0.05249425,132.46,132.44,7.5508]
[1744712783542,7.25130605,132.52,132.43,9.41337239]
[1744712783743,7.25130605,132.52,132.43,9.36010605]
[1744712783940,7.25130605,132.5,132.43,2.1088]
[1744712784142,7.25130605,132.48,132.43,2.1088]
[1744712784342,7.25130605,132.48,132.42,30.42]
[1744712784540,0.05019053,132.46,132.44,0.05309462]
[1744712786243,7.60039053,132.46,132.44,0.05309462]
[1744712786440,0.05019053,132.46,132.44,0.05309462]
[1744712790454,0.05019053,132.46,132.45,7.5506]
[1744712790644,7.5486,132.49,132.45,7.5506]
[1744712790950,7.5492,132.48,132.45,7.5506]
[1744712791148,7.25130605,132.51,132.46,7.55]
[1744712791453,37.67130605,132.53,132.46,30.0]
[1744712791651,0.05780713,132.51,132.48,0.05736206]
[1744712792650,7.60540713,132.51,132.48,0.05736206]
[1744712792853,0.05780713,132.51,132.48,0.05736206]
[1744712793354,7.5483,132.49,132.48,0.05736206]
[1744712793951,7.5479,132.5,132.48,0.05736206]
[1744712794249,0.05780713,132.51,132.48,0.05736206]
[1744712794654,0.05780713,132.51,132.5,7.5477]
[1744712795154,0.05780713,132.51,132.49,7.548]
[1744712796049,30.0,132.56,132.5,7.5477]
[1744712796257,7.25130605,132.58,132.5,30.0]
[1744712796453,7.25130605,132.58,132.51,7.25130605]
[1744712796857,7.5452,132.55,132.52,7.5463]
[1744712797056,7.25130605,132.58,132.5,30.0]
[1744712797257,0.05747453,132.54,132.52,0.04953355]
[1744712798058,7.546,132.53,132.52,0.04953355]
[1744712799759,7.546,132.53,132.47,29.98]
[1744712799760,7.30878058,132.54,132.47,29.98]
[1744712799959,7.25130605,132.54,132.47,29.98]
[1744712800163,7.548,132.5,132.47,37.5291]
[1744712800563,7.548,132.5,132.48,7.5488]
[1744712800756,7.60433075,132.5,132.47,30.03035779]
[1744712801864,7.60433075,132.5,132.47,37.57945779]
[1744712802764,0.05633075,132.5,132.47,37.28166384]
[1744712802957,37.23130605,132.56,132.48,4.1054]
[1744712803262,573.3,132.59,132.51,7.25130605]
[1744712803461,7.5448,132.56,132.52,37.5261]
[1744712803756,573.3,132.59,132.52,29.98]
[1744712803962,573.3,132.59,132.52,37.5261]
[1744712804162,0.05160816,132.57,132.54,0.05287159]
[1744712804357,7.5449,132.55,132.54,0.05287159]
[1744712808269,7.5475,132.51,132.49,29.98]
[1744712808965,7.5469,132.52,132.49,37.5282]
[1744712809268,7.59575558,132.52,132.49,37.58243452]
[1744712809567,7.25130605,132.58,132.51,7.5468]
[1744712810169,7.5455,132.54,132.51,7.5468]
[1744712810568,7.59420163,132.54,132.51,7.60274499]
[1744712811969,0.04870163,132.54,132.52,7.5465]
[1744712812469,7.5463,132.53,132.51,0.05594499]
[1744712813370,7.5466,132.52,132.51,0.05594499]
[1744712815473,7.25130605,132.52,132.46,29.98]
[1744712815668,7.25130605,132.5,132.43,34.0646]
[1744712815872,7.25130605,132.5,132.43,41.6161]
[1744712816070,7.25130605,132.5,132.43,34.0646]
[1744712816271,7.25130605,132.48,132.43,34.0646]
[1744712816472,7.5503,132.46,132.45,0.05091538]
[1744712820179,14.80160605,132.46,132.45,0.05091538]
[1744712820678,7.5516,132.44,132.4,38.9436]
[1744712821175,7.5524,132.42,132.4,31.3905]
[1744712821579,7.60302158,132.42,132.4,31.44598704]
[1744712822084,0.05062158,132.42,132.4,38.99928704]
[1744712822384,0.05062158,132.42,132.4,31.44598704]
[1744712823582,7.60292158,132.42,132.4,31.44598704]
[1744712824286,0.05062158,132.42,132.4,31.44598704]
[1744712824886,7.60292158,132.42,132.4,31.44598704]
[1744712825391,7.5529,132.41,132.4,31.44598704]
[1744712825684,7.5529,132.41,132.4,29.49548704]
[1744712826084,7.5529,132.41,132.4,0.05548704]
[1744712826884,0.05062158,132.42,132.4,7.30679309]
[1744712827083,29.44,132.47,132.4,7.30679309]
[1744712827286,29.44,132.5,132.44,7.25130605]
[1744712827584,7.5495,132.47,132.44,7.25130605]
[1744712827889,29.44,132.5,132.44,7.25130605]
[1744712828388,0.0549688,132.48,132.46,0.05246092]
[1744712828584,7.5494,132.47,132.46,0.05246092]
[1744712833693,7.5528,132.42,132.4,359.0]
[1744712833895,29.44,132.46,132.39,2.0368]
[1744712834087,38.72150605,132.47,132.39,9.28810605]
[1744712834395,7.5506,132.45,132.41,7.25130605]
[1744712834896,7.6056898,132.44,132.42,0.05787005]
[1744712835395,7.5517,132.43,132.42,0.05787005]
[1744712837896,44.24300605,132.43,132.42,7.005e-05]
[1744712838198,44.25130605,132.43,132.35,1.9997]
[1744712838399,7.25130605,132.4,132.35,1.9997]
[1744712838695,7.5557,132.36,132.35,1.9997]
[1744712840199,0.04904718,132.37,132.35,1.9997]
[1744712842497,0.04904718,132.37,132.34,2.11600285]
[1744712844794,11.63514018,132.45,132.34,2.11600285]
[1744712845099,29.46,132.44,132.36,11.63514018]
[1744712845398,7.552,132.43,132.39,7.5537]
[1744712845698,29.46,132.44,132.37,31.4964]
[1744712845898,7.60561147,132.42,132.39,0.05055969]
[1744712846599,7.5529,132.41,132.39,0.05055969]
[1744712846903,0.05291147,132.42,132.39,0.05055969]
[1744712847095,7.5534,132.4,132.39,0.05055969]
[1744712848198,7.5532,132.41,132.39,0.05055969]
[1744712848697,0.05291147,132.42,132.39,0.05055969]
[1744712848898,7.5534,132.4,132.39,0.05055969]
[1744712851503,7.5531,132.41,132.39,0.05055969]
[1744712852101,0.05291147,132.42,132.39,0.05055969]
[1744712853105,0.05291147,132.42,132.4,7.5531]
[1744712853406,0.05291147,132.42,132.39,29.05055969]
[1744712853703,0.05291147,132.42,132.4,7.5534]
[1744712854006,0.05291147,132.42,132.39,29.05055969]
[1744712854399,7.5529,132.41,132.39,29.05055969]
[1744712855405,7.5534,132.4,132.39,0.05055969]
[1744712855610,0.05291147,132.42,132.39,0.05055969]
[1744712855801,7.5534,132.4,132.39,0.05055969]
[1744712857712,7.5532,132.41,132.39,0.05055969]
[1744712858110,0.05291147,132.42,132.39,0.05055969]
[1744712858505,7.5534,132.4,132.39,0.05055969]
[1744712861915,7.5532,132.41,132.39,0.05055969]
[1744712862314,0.05291147,132.42,132.39,0.05055969]
[1744712862817,0.05291147,132.42,132.4,7.5534]
[1744712863319,0.05291147,132.42,132.39,0.05055969]
[1744712863618,0.05291147,132.42,132.39,29.05055969]
[1744712863918,0.05291147,132.42,132.4,7.5532]
[1744712865124,0.05291147,132.42,132.39,29.05055969]
[1744712865325,0.05291147,132.42,132.39,0.05055969]
[1744712865521,7.5529,132.41,132.39,0.05055969]
[1744712867322,0.05291147,132.42,132.39,0.05055969]
[1744712867823,7.5534,132.4,132.39,0.05055969]
[1744712869424,7.5532,132.41,132.39,0.05055969]
[1744712870027,7.5534,132.4,132.39,0.05055969]
[1744712872130,7.5532,132.41,132.39,0.05055969]
[1744712872328,0.05291147,132.42,132.39,0.05055969]
[1744712872631,7.5533,132.41,132.39,0.05055969]
[1744712872825,0.05291147,132.42,132.39,0.05055969]
[1744712873123,0.05291147,132.42,132.39,7.60435969]
[1744712873321,0.05291147,132.42,132.39,0.05055969]
[1744712873522,0.05291147,132.42,132.4,7.5532]
[1744712874728,7.60541147,132.42,132.39,36.60425969]
[1744712875030,0.05291147,132.42,132.39,29.05055969]
[1744712875730,0.05291147,132.42,132.39,0.05055969]
[1744712876028,7.5534,132.4,132.39,0.05055969]
[1744712876230,0.05291147,132.42,132.39,0.05055969]
[1744712876430,7.5533,132.41,132.39,0.05055969]
[1744712877130,7.60551147,132.42,132.39,0.05055969]
[1744712877431,0.05291147,132.42,132.39,0.05055969]
[1744712877625,7.5534,132.4,132.39,0.05055969]
[1744712887839,7.5551,132.38,132.35,2.0514]
[1744712888333,36.26974415,132.42,132.35,2.0514]
[1744712888937,7.5549,132.38,132.37,0.04971908]
[1744712891135,0.05524008,132.4,132.37,0.04971908]
[1744712891636,7.60894008,132.4,132.37,7.60451908]
[1744712891836,0.05524008,132.4,132.37,0.04971908]
[1744712892237,7.60894008,132.4,132.37,7.60471908]
[1744712892439,0.05524008,132.4,132.37,0.04971908]
[1744712893144,579.78974415,132.46,132.38,7.26974415]
[1744712893338,572.52,132.46,132.39,28.68]
[1744712893539,7.5523,132.43,132.39,36.2337]
[1744712893840,579.78974415,132.46,132.39,36.2337]
[1744712894344,0.05243043,132.44,132.41,0.0482522]
[1744712894942,7.5523,132.42,132.41,0.0482522]
[1744712895338,0.05243043,132.44,132.41,0.0482522]
[1744712895540,7.5523,132.42,132.41,0.0482522]
[1744712906062,0.05243043,132.44,132.41,4.69914617]
[1744712906359,0.05243043,132.44,132.43,12.20259397]
[1744712907361,0.05243043,132.44,132.41,4.1345522]
[1744712907658,0.05243043,132.44,132.41,2.1252522]
[1744712907858,7.60403043,132.44,132.41,2.1252522]
[1744712908455,7.552,132.43,132.41,2.1252522]
[1744712908661,4.7033244,132.44,132.41,0.0482522]
[1744712909161,7.5523,132.42,132.41,0.0482522]
[1744712910359,7.5544,132.39,132.37,2.1253]
[1744712910759,28.66,132.42,132.37,2.1253]
[1744712910958,7.5531,132.41,132.37,2.1253]
[1744712911456,0.05319399,132.4,132.38,7.5545]
[1744712911658,0.05319399,132.4,132.38,7.60437853]
[1744712912162,7.60659399,132.4,132.38,7.60437853]
[1744712912363,28.46,132.45,132.38,7.31595112]
[1744712912661,28.46,132.45,132.38,9.34815112]
[1744712913262,7.552,132.43,132.38,9.34815112]
[1744712913461,7.60285633,132.43,132.38,9.34815112]
[1744712913662,7.60285633,132.43,132.4,7.5531]
[1744712914164,0.05085633,132.43,132.39,1.996]
[1744712914463,0.05085633,132.43,132.41,7.5526]
[1744712914659,0.05085633,132.43,132.41,7.60339991]
[1744712914860,0.05085633,132.43,132.42,7.5523]
[1744712915058,543.7,132.47,132.41,0.05079991]
[1744712915361,7.5509,132.45,132.42,7.5519]
[1744712916166,0.05601999,132.45,132.43,7.5514]
[1744712917465,0.05601999,132.45,132.42,0.04847422]
[1744712917466,7.60671999,132.45,132.42,7.60067422]
[1744712918366,7.5512,132.44,132.42,7.60067422]
[1744712918562,7.5512,132.44,132.42,0.04847422]
[1744712920370,7.5517,132.43,132.42,0.04847422]
[1744712924167,7.5515,132.44,132.42,0.04847422]
[1744712924668,0.05601999,132.45,132.42,7.31454681]
[1744712925465,0.05601999,132.45,132.43,7.5513]
[1744712927371,7.60661999,132.45,132.43,7.5513]
[1744712927668,0.05601999,132.45,132.43,7.5513]
[1744712928167,0.05601999,132.45,132.42,7.60057422]
[1744712928369,0.05601999,132.45,132.42,0.04847422]
[1744712928569,7.5517,132.43,132.42,0.04847422]
[1744712929168,7.5514,132.44,132.42,0.04847422]
[1744712929366,0.05601999,132.45,132.42,0.04847422]
[1744712929766,7.60681999,132.45,132.42,7.60037422]
[1744712929967,0.05601999,132.45,132.42,0.04847422]
[1744712931673,7.60701999,132.45,132.42,7.60047422]
[1744712932174,0.05601999,132.45,132.42,0.04847422]
[1744712932975,0.05601999,132.45,132.43,7.5517]
[1744712933470,0.05601999,132.45,132.44,7.5511]
[1744712933673,28.46,132.49,132.44,7.5511]
[1744712934472,7.55,132.47,132.44,7.5511]
[1744712934776,0.05281653,132.47,132.44,0.05454109]
[1744712935177,12.19948641,132.45,132.44,0.05454109]
[1744712937180,7.5506,132.45,132.44,0.05454109]
[1744712939572,7.5506,132.45,132.44,4.109e-05]
[1744712941177,36.0103,132.46,132.44,4.109e-05]
[1744712941375,28.46,132.46,132.44,4.109e-05]
[1744712941681,0.05281653,132.47,132.44,4.109e-05]
[1744712941883,7.55,132.46,132.44,4.109e-05]
[1744712942382,0.05281653,132.47,132.44,4.109e-05]
[1744712942576,7.5504,132.46,132.44,4.109e-05]
[1744712942782,0.05281653,132.47,132.44,4.109e-05]
[1744712943179,7.5506,132.45,132.44,4.109e-05]
[1744712944386,0.05281653,132.47,132.44,7.55114109]
[1744712944577,0.05281653,132.47,132.44,4.109e-05]
[1744712944981,7.5502,132.46,132.44,4.109e-05]
[1744712945182,0.05281653,132.47,132.44,4.109e-05]
[1744712945387,7.5506,132.45,132.44,4.109e-05]
[1744712957198,7.60261653,132.47,132.44,7.55114109]
[1744712957397,0.05281653,132.47,132.44,4.109e-05]
[1744712957800,7.60251653,132.47,132.44,4.109e-05]
[1744712958299,7.5501,132.46,132.44,4.109e-05]
[1744712959197,7.5501,132.46,132.44,4.64653516]
[1744712959499,0.05281653,132.47,132.44,4.64653516]
[1744712959797,0.05281653,132.47,132.46,4.64649407]
[1744712960397,0.05281653,132.47,132.45,4.64649407]
[1744712960598,7.60261653,132.47,132.45,4.64649407]
[1744712960799,0.05281653,132.47,132.44,4.64653516]
[1744712961097,0.05281653,132.47,132.45,4.64649407]
[1744712961298,0.05281653,132.47,132.45,12.19679407]
[1744712961503,0.05281653,132.47,132.44,4.109e-05]
[1744712961801,7.60261653,132.47,132.44,7.55094109]
[1744712963099,7.60261653,132.47,132.45,7.5505]
[1744712963699,7.60261653,132.47,132.45,4.64649407]
[1744712963901,0.05281653,132.47,132.44,4.109e-05]
[1744712964799,7.5503,132.46,132.44,4.109e-05]
[1744712965295,4.6993106,132.47,132.44,4.109e-05]
[1744712966004,7.5504,132.46,132.44,4.109e-05]
[1744712966302,0.05281653,132.47,132.44,4.109e-05]
[1744712966601,7.60251653,132.47,132.44,7.55074109]
[1744712966802,7.60251653,132.47,132.44,4.109e-05]
[1744712967097,0.05281653,132.47,132.45,12.19659407]
[1744712967802,4.6993106,132.47,132.44,2.01294109]
[1744712968001,4.6993106,132.47,132.44,4.109e-05]
[1744712968904,12.19709407,132.45,132.44,4.109e-05]
[1744712971505,7.5506,132.45,132.44,4.109e-05]
[1744712980227,0.05281653,132.47,132.44,4.109e-05]
[1744712980526,4.64649407,132.45,132.44,4.109e-05]
[1744712980920,12.19709407,132.45,132.44,4.109e-05]
[1744712981823,7.5535,132.4,132.38,35.11869407]
[1744712982127,7.5535,132.4,132.38,28.44]
[1744712982424,7.5548,132.38,132.35,30.4437]
[1744712982727,4.64649407,132.4,132.35,35.09019407]
[1744712982931,7.5553,132.37,132.35,35.09019407]
[1744712983227,7.5553,132.37,132.36,0.04965556]
[1744712984232,0.05607151,132.39,132.36,4.69614963]
[1744712984727,7.61047151,132.39,132.36,4.69614963]
[1744712985033,0.05607151,132.39,132.36,4.69614963]
[1744712985427,7.5548,132.38,132.36,0.04965556]
[1744712985620,0.05607151,132.39,132.37,12.20159407]
[1744712985825,33.08649407,132.44,132.38,4.64649407]
[1744712986026,7.5529,132.41,132.39,4.64649407]
[1744712986225,7.5529,132.41,132.38,4.64649407]
[1744712986425,7.5529,132.41,132.38,12.20079407]
[1744712986726,4.64649407,132.42,132.36,4.64649407]
[1744712986928,0.0515834,132.39,132.38,7.5543]
[1744712987227,0.04950919,132.4,132.37,4.70233918]
[1744712988227,7.5541,132.39,132.37,12.25723918]
[1744712988426,0.04950919,132.4,132.37,0.05584511]
[1744712989028,7.554,132.39,132.37,0.05584511]
[1744712989528,7.5546,132.38,132.37,0.05584511]
[1744712990528,7.5542,132.39,132.37,0.05584511]
[1744712990731,0.04950919,132.4,132.37,12.25713918]
[1744712990919,0.04950919,132.4,132.38,4.64649407]
[1744712991327,0.04950919,132.4,132.39,4.64649407]
[1744712991928,0.04950919,132.4,132.39,12.20049407]
[1744712992129,0.04950919,132.4,132.39,4.64649407]
[1744712992729,0.04950919,132.4,132.39,12.20049407]
[1744712994525,7.5541,132.39,132.37,0.05584511]
[1744712994829,0.04950919,132.4,132.37,0.05584511]
[1744712995031,0.04950919,132.4,132.37,4.70233918]
[1744712995224,7.60320919,132.4,132.37,12.25723918]
[1744712996030,7.5541,132.39,132.37,12.25723918]
[1744712997931,7.60310919,132.4,132.38,7.5543]
[1744712998230,33.08649407,132.44,132.39,4.64649407]
[1744712998532,7.5526,132.42,132.39,12.20009407]
[1744712998727,22.6419,132.51,132.4,4.64649407]
[1744712998936,33.08649407,132.49,132.44,4.64649407]
[1744712999134,7.5503,132.46,132.44,4.64649407]
[1744712999329,7.5503,132.46,132.45,4.64649407]
[1744712999533,7.60765771,132.46,132.45,4.64649407]
[1744713000237,0.05735771,132.46,132.45,4.64649407]
[1744713001135,0.05735771,132.46,132.44,7.59844117]
[1744713001330,28.44,132.49,132.44,7.59844117]
[1744713001331,7.5491,132.48,132.44,0.04764117]
[1744713001633,7.5491,132.48,132.44,28.48764117]
[1744713001834,7.5495,132.47,132.45,7.5505]
[1744713002325,579.25872553,132.52,132.45,7.5505]
[1744713002326,7.5491,132.48,132.45,7.5505]
[1744713002526,7.5491,132.48,132.45,7.60010076]
[1744713002527,0.05354014,132.47,132.45,7.60010076]
[1744713003831,0.05354014,132.47,132.46,7.55]
[1744713005836,7.548,132.5,132.47,7.5491]
[1744713006038,28.44,132.55,132.47,35.69872553]
[1744713006238,35.69872553,132.55,132.47,28.44]
[1744713006440,7.25872553,132.53,132.47,28.44]
[1744713006940,7.5494,132.48,132.45,7.5503]
[1744713007132,0.057197,132.48,132.45,0.04778056]
[1744713008737,7.31592253,132.48,132.45,0.04778056]
[1744713009138,7.55,132.46,132.45,0.04778056]
[1744713010145,7.5496,132.47,132.45,0.04778056]
[1744713010335,37.42832553,132.56,132.46,35.67872553]
[1744713010638,7.5467,132.52,132.49,7.5479]
[1744713011037,7.5467,132.52,132.48,7.25872553]
[1744713011240,7.5462,132.53,132.48,7.25872553]
[1744713011436,0.0557893,132.52,132.49,0.05228768]
[1744713011840,0.0557893,132.52,132.5,7.5477]
[1744713012144,0.0557893,132.52,132.49,28.47228768]
[1744713012337,28.42,132.56,132.5,7.25872553]
[1744713012535,572.02,132.59,132.52,14.80482553]
[1744713013041,572.02,132.59,132.52,43.22482553]
[1744713013340,0.04973617,132.57,132.54,0.04839832]
[1744713013943,7.5452,132.55,132.54,0.04839832]
[1744713014340,0.04973617,132.57,132.54,0.04839832]
[1744713014535,28.42,132.62,132.56,7.5443]
[1744713014740,28.42,132.62,132.55,9.23952553]
[1744713014942,28.42,132.62,132.55,37.65952553]
[1744713015241,28.42,132.62,132.56,7.5441]
[1744713015643,7.59456405,132.6,132.58,0.04799308]
[1744713016043,0.05196405,132.6,132.58,0.04799308]
[1744713016242,7.5426,132.59,132.58,0.04799308]
[1744713017242,28.42,132.59,132.51,43.22572553]
[1744713017541,7.25872553,132.58,132.51,28.42]
[1744713017742,28.42,132.59,132.49,904.5579]
[1744713017743,7.25872553,132.56,132.49,904.5579]
[1744713018042,7.25872553,132.54,132.49,2.1179]
[1744713018444,0.05456231,132.53,132.5,0.0551273]
[1744713018845,28.47456231,132.53,132.5,0.0551273]
[1744713019043,7.5472,132.51,132.5,0.0551273]
[1744713020248,0.05456231,132.53,132.5,0.0551273]
[1744713020948,7.60096231,132.53,132.5,0.0551273]
[1744713021249,7.5472,132.51,132.5,0.0551273]
[1744713021848,7.5469,132.52,132.5,0.0551273]
[1744713022044,0.05456231,132.53,132.51,7.25872553]
[1744713022248,571.7,132.59,132.51,39.62822553]
[1744713022451,7.5447,132.56,132.52,7.5463]
[1744713022747,35.67872553,132.59,132.51,39.62822553]
[1744713022944,7.5453,132.55,132.51,47.17512553]
[1744713023144,28.42,132.59,132.53,7.25872553]
[1744713023346,28.42,132.62,132.55,7.25872553]
[1744713023543,7.5432,132.58,132.55,7.25872553]
[1744713024451,7.59793883,132.58,132.55,7.3070159]
[1744713024649,7.59793883,132.58,132.55,17.0039159]
[1744713024849,7.5437,132.57,132.55,17.0039159]
[1744713025050,0.05473883,132.58,132.55,9.4591159]
[1744713025753,7.59803883,132.58,132.55,17.0036159]